{"text_format":"5","workbook":"xlsx","n_sheets":1,"sheets":["Munka1"],"props":{"creator":"Harangi Katalin","last_modified_by":"zsiga"},"read":"whole","wrapped":"gz","date_system":"1900"}

{"sheet":"Munka1","index":0,"n_rows":67,"n_cols":10,"rows_kept":67,"merged":[[0,0,1,0],[0,1,1,1],[0,2,1,2],[0,3,1,3],[0,4,1,4],[0,5,1,5],[0,6,0,7],[0,8,0,9],[3,0,3,1],[5,0,5,1],[6,2,7,2],[8,0,8,1],[10,0,10,1],[14,2,17,2],[18,0,18,1],[26,0,26,1],[43,0,43,1],[51,0,51,1],[57,0,57,1],[60,0,60,1]],"headers":{"header":["","Költségvetési kiírás","2017.augusztus 1."]}}
["Poz.","Megnevezés","Műszaki specifikáció","Gyártó                   Típus","Méret /mm  (szél,mély,mag)                   ","db","Egység ár",null,"Összesen"]
[{"$nulls":6},"Anyag","díj ","Anyag","díj "]
[]
["Közlekedő folyosó"]
[1,"Álló hűtőszekrény","Hűtőszekrény rozsdamnets burkolattal  zárható ajtóval 375 liters","Liebherr  Fkvesf4145","600*610*1850",1,0,0,{"$f":"SUM(F5*G5)","v":0},{"$f":"F5*H5","v":0}]
["Raktár I.",{"$nulls":5},0,0,{"$f":"SUM(F6*G6)","v":0},{"$f":"F6*H6","v":0}]
[1,"Tároló állvány","Állítható polcmagasság 10 cm-ként, szintezhető lábak, kiemelhető, ipari mosogatógépben mosható, perforált polcbetétek, OÉTI engedély, tőkehús tárolására alkalmas hűtőkamrában is, hőterhelhetőség: -40°C -tól, 150 kg szintenkénti terhelhetőség, anyag: alumínium lábak és keresztmerevítők, polietilén polcbetétek","BRE18_154","1500*400*1800",4,0,0,0,{"$f":"F7*H7","v":0}]
[2,"Tároló állvány",null,"BRE18_105","1000*500*1800",1,0,0,0,{"$f":"F8*H8","v":0}]
["Raktár II."]
[1,"Tároló állvány",null,"BRE18_145","1400*500*1800",7,0,0,0,{"$f":"F10*H10","v":0}]
["Szállítóedény mosogató",{"$nulls":5},0,0,0,{"$f":"F11*H11","v":0}]
[1,"Kézmosó",null,"Fayance",null,1,0,0,0,{"$f":"F12*H12","v":0}]
[2,"Raklap","Higiénikus műanyag raklap. Anyaga: polietilén. A raklap -30 és +70 °C közötti hőmérsékleten használható.","276829 3C","1200*800*150",2,0,0,0,{"$f":"F13*H13","v":0}]
[3,"Kétmedencés mosogató hátsó felhajtással, három lábösszekötővel","AISI 304 rozsdamentes anyagból, körben takaró köténylemezzel, mélyhúzott medencékkel. Medence méret 500*600*300","Correx","1500*700*850",1,0,0,0,{"$f":"F14*H14","v":0}]
[4,"Tároló állvány","Tároló állvány elokszált alumínium vázzal szintezhető lábakkal , 10 cm állítható polc magassággal, kivehető mosható polc betétlapokkal , 150 kg /polc terhelhetőséggel OÉTI engedéllyel","BRE18_106","1000*600*1800",1,0,0,0,{"$f":"F15*H15","v":0}]
[5,"Tároló állvány",null,"BRE18_125","1200*500*1800",1,0,0,0,{"$f":"F16*H16","v":0}]
[6,"Tároló állvány",null,"BRE18_146","1400*600*1800",1,0,0,0,{"$f":"F17*H17","v":0}]
[7,"Tároló állvány",null,"BRE18_136","1300*600*1800",1,0,0,0,{"$f":"F18*H18","v":0}]
["Előkészítő"]
[1,"Kézmosó",null,"Fayance",null,1,0,0,0,{"$f":"F20*H20","v":0}]
[2,"Kétmedencés mosogató hátsó felhajtással, három lábösszekötővel","AISI 304 rozsdamentes anyagból, kezelőoldalon  takaró köténylemezzel, mélyhúzott medencékkel.medence mérete 500*500*250","Correx","1170*600*900",1,0,0,0,{"$f":"F21*H21","v":0}]
["2/a","Kétdzintes csepegtető tároló polc","Rozsdamnetes falipolc állítható fali konzolon","Correx","1200*300*600",1,0,0,0,{"$f":"F22*H22","v":0}]
[3,"Semleges munkapult ","Munkapult hátsó és bal oldali elhajtással alsó és köztes polccal szintezhető lábakon","Correx","1600*600*900",1,0,0,0,{"$f":"F23*H23","v":0}]
["3/a","Tolóajtós faliszekrény","faliszekrény állítható magasságú köztes polccal tolóajtóval","Correx","1600*-350*800",1,0,0,0,{"$f":"F24*H24","v":0}]
[4,"Munkaasztal két oldali láb összekötővel , hűtőszekrények főlé","Mubaaszatl hátső és jobb oldali felhajtással hűtőszekrények fogadására alaklmas merevítéssel","Correx","1400*600*900",1,0,0,0,{"$f":"F25*H25","v":0}]
[5,"Pult alá telepíthető hűtőszekrény ","Ipari teljesítményű hűtőszekrény fagyasztóü rekesz nálkül rozsdamnets burkolattal","Liebherr  Fkvesf1805","600*600*850",2,0,0,0,{"$f":"F26*H26","v":0}]
["Melegítő konyha"]
[1,"Kombinált kézmosó-kiöntő","Mélyhúzott kézmosó- és kiöntő medence, önhordó szerkezet takaró borításokkal, szintezhető lábakkal, felül kézmosó- alul kiöntő medence, keverő csaptelep 250 mm forgatható kifolyószárral, kiöntő medence méret: 400x400x250 mm, medence szélére akasztható perforált vödörtartó lemez, tartozékok: műanyag szifon, flexibilis bekötőcsövek, anyaga: rozsdamentes acél, származási hely: Olaszország.","IPA39","500*600*850",1,0,0,0,{"$f":"F28*H28","v":0}]
[2,"Álló hűtőszekrény","bruttó 601 literes hűtőszekrény; légbefúvásos hűtési rendszerrel; felső léghűtéses agregáttal; zárható teli ajtóval; hűtési tartomány: +1/+15°C között; állítható páratartalom, digitális - fok pontosságú - hőmérsékletkijelzéssel, nyomáskiegyenlítő szeleppel, állítható lábakkal, ajtó nyitásának iránya megfordítható. ","Liebherr GKpv 6570","700*830*2150",2,0,0,0,{"$f":"F29*H29","v":0}]
[3,"Munkaasztal alsó és köztes polccal, hátsó felhajtással ","AISI 304 rozsdamentes anyagból",null,"1200*600*850",1,0,0,0,{"$f":"F30*H30","v":0}]
["3/a","Faliszekrény toló ajtóval ","AISI 304 rozsdamentes anyagból",null,"1200*350*600",1,0,0,0,{"$f":"F31*H31","v":0}]
[4,"Munkaasztal alsó és köztes polccal, hátsó felhajtással ","AISI 304 rozsdamentes anyagból",null,"1500*600*850",2,0,0,0,{"$f":"F32*H32","v":0}]
["4/a","Faliszekrény toló ajtóval ","AISI 304 rozsdamentes anyagból",null,"1200*350*600",2,0,0,0,{"$f":"F33*H33","v":0}]
[5,"Munkaasztal alsó polccal, fékezhető bolygó kerekekkel","AISI 304 rozsdamentes anyagból",null,"1600*700*850",1,0,0,0,{"$f":"F34*H34","v":0}]
[6,"Tálca regál","18 db GN 1/1 tálca férőhely, sinek 90 mm-es beosztással, erős, masszív kivitel, egyszerű összeszerelés, mindkét oldalról kezelhető, két oldalán tálcarögzítővel, 4 kerék, melyből 2 fékezhető, kapacitás: 150 kg, lapraszerelt csomagolásban, anyaga: rozsdamentes acél","S404","385*555*1735",1,0,0,0,{"$f":"F35*H35","v":0}]
[7,"Légkeveréses sütő","6*GN 1/1 tálcás elektromos sütő, 5 fokozatú páratartalom szabályzás. ","Zanussi 240205","860*746*633",1,0,0,0,{"$f":"F36*H36","v":0}]
[null,"Készülékállvány","AISI 304 rozsdamentes anyagból, nyitott kivitel","Zanussi 922101","858*625*920",1,0,0,0,{"$f":"F37*H37","v":0}]
["7/a","Elszívóernyő sütő fölé","AISI 304 rozsdamentes anyagból",null,"1000*1000*400",1,0,0,0,{"$f":"F38*H38","v":0}]
["7/b","Vízlágyító","Automata vízlágyító","Zanussi 921305","250*480*540",1,0,0,0,{"$f":"F39*H39","v":0}]
[8,"Munkaasztal három lábösszekötővel, hátsó felhajtással ","AISI 304 rozsdamentes anyagból",null,"1100*700*850",1,0,0,0,{"$f":"F40*H40","v":0}]
[9,"Elektromos üzemű 4 lapos tűzhely","4*2,6 kWos, elektromos asztali tűzhely. ","Zanussi 372015","800*700*250",1,0,0,0,{"$f":"F41*H41","v":0}]
["9/a","Készülékállvány","AISI 304 rozsdamentes anyagból, nyitott kivitel","Zanussi 371113","800*550*600",1,0,0,0,{"$f":"F42*H42","v":0}]
["9/b","Elszívóernyő","AISI 304 rozsdamentes anyagból",null,"900*900*400",1,0,0,0,{"$f":"F43*H43","v":0}]
["Tálaló pult"]
[1,"Munkapult -kézmosóval","Rozsdamentes munkapult hátsó felhajtással, beépített kézmoóval-csapteleppel, alsó egységben billenő szemetessel","Correx","600*600*900",1,0,0,0,{"$f":"F45*H45","v":0}]
[2,"Munkapult hátsó felhajtással tolóajtóval","Rozsdamenest munkapult hátsó felhajtással alsó és köztes polccal tolóaajtóval szintezhető talpakon","Correx","1200*600*900",2,0,0,0,{"$f":"F46*H46","v":0}]
[3,"Vízfürdős étel melegentartó egysoros kiadó polccal","Vízfürdős melegentartó tolóajtós tárolóval -ráépített rozsdamentes kiadó polccal, lehelletvédő üveggel,vízfeltöltő és leeresztő  csappal","Correx","1200*700*850/1600",2,0,0,0,{"$f":"F47*H47","v":0}]
[4,"Önkiszolgáló hűtővitrin","Önkiszolgáló hűtővitrin 4 soros tároló polccal, hátulról tölthető, önkiszolgáló oldalról soronként  víztiszta plexi billenő ajtókkal, beépített elpárologtatóval","Correx","700*700*1600",1,0,0,0,{"$f":"F48*H48","v":0}]
[5,"Tálcacsúszda","Önkiszolgáló pultsorra szerlt tálcacsuszda  egy darabból gyártva","Correx","3100*300",1,0,0,0,{"$f":"F49*H49","v":0}]
[6,"Önkiszolgáló tálca, evőeszköz és pohár tároló kocsi","Rozsdamenets tároló kocsi fékezhető bolygó kerekkel- tervezői egyeztetéssel","Correx","700*650*1400",1,0,0,0,{"$f":"F50*H50","v":0}]
[7,"Tűlcatároló regálkocsi","Gn 1/1 es mératű tálcák részére","S404","385*555*1735",3,0,0,0,{"$f":"F51*H51","v":0}]
["Fogyasztói mosogató"]
[1,"Kézmosó","AISI 304 rozsdamentes anyagból, nyitott kivitel",null,null,1,0,0,0,{"$f":"F53*H53","v":0}]
[2,"Kétmedencés mosogató hátsó felhajtással, három lábösszekötővel- kifutó asztal","AISI 304 rozsdamentes anyagból, Mosogatógép kifutó asztalnak alakítva, állítható lábakon",null,"1200*750*900",1,0,0,0,{"$f":"F54*H54","v":0}]
[3,"Mosogatógép","Kosár méret: 500*500, kapacitás: 540 tányér/óra, 304 AISI rozsdamentes anyagból, vízfogyasztás: 3 L/ciklus, ürítőpumpával, beépített öblítőszer adagolóval, dupla szigetelésű ajtó","Zanussi 505071","720*750*1460",1,0,0,0,{"$f":"F55*H55","v":0}]
["3/a","Vízlágyító","Automata vízlágyító","Zanussi 921305","250*480*540",1,0,0,0,{"$f":"F56*H56","v":0}]
[4,"Munkaasztal -befutó -három lábösszekötővel, hátsó felhajtással ","AISI 304 rozsdamentes anyagból, nyitott kivitel beépoített 400*500*250 medencével, mini  leverető zuhanyos csapteleppel ","Correx","1300*750*900",1,0,0,0,{"$f":"F57*H57","v":0}]
["Takszer."]
[1,"Falikút","Anyaga: rozsdamentes acél, tartalmazza a szifont szeleppel és a rácsot.","S106","465*450*330",1,0,0,0,{"$f":"F59*H59","v":0}]
[2,"Tároló állvány",null,"BRE18_185","600*500*1800",1,0,0,0,{"$f":"F60*H60","v":0}]
["Egyéb kisgépek",null,"Szadad felhasználású csatlakozokhoz",{"$nulls":3},0,0,0,{"$f":"F61*H61","v":0}]
[1,"Felvágott szeletelőgép ","250 kés átmérővel ",null,null,1,0,0,0,{"$f":"F62*H62","v":0}]
[2,"Digitális asztali mérleg","15 kg méréshatárig ","Acsa 15",null,1,0,0,0,{"$f":"F63*H63","v":0}]
[3,"Aszatli keverő  robotgép",null,"Kitseníd",null,1,0,0,0,{"$f":"F64*H64","v":0}]
[4,"Mikrohullámú sütő",{"$nulls":3},1,0,0,0,{"$f":"F65*H65","v":0}]
[]
[null,"Összes költség:",{"$nulls":6},{"$f":"SUM(I5:I66)","v":0},{"$f":"SUM(J5:J66)","v":0}]